[Event "*** Titled Tuesday Blitz"]
[Site "Chess.com"]
[Date "2021.02.09"]
[Round "2"]
[White "Korchmar_Vasiliy"]
[Black "garicradomir"]
[Result "1-0"]
[WhiteElo "2604"]
[BlackElo "2213"]
[TimeControl "180+1"]
[EndTime "10:17:32 PST"]
[Termination "Korchmar_Vasiliy won by resignation"]

1. e4 {[%clk 0:03:00.9]} 1... g6 {[%clk 0:02:59.9]} 2. d4 {[%clk 0:02:59.6]}
2... Nf6 {[%clk 0:03:00.4]} 3. Nc3 {[%clk 0:02:58.8]} 3... d5 {[%clk 0:03:00.4]}
4. e5 {[%clk 0:02:53.3]} 4... Ne4 {[%clk 0:03:00.5]} 5. Bd3 {[%clk 0:02:52.6]}
5... Nxc3 {[%clk 0:02:59.3]} 6. bxc3 {[%clk 0:02:53.5]} 6... c5 {[%clk
0:02:59.7]} 7. Nf3 {[%clk 0:02:46.8]} 7... Bg4 {[%clk 0:02:59.3]} 8. h3 {[%clk
0:02:45.8]} 8... Bxf3 {[%clk 0:02:58.9]} 9. Qxf3 {[%clk 0:02:45.9]} 9... c4
{[%clk 0:02:59.3]} 10. Be2 {[%clk 0:02:43.1]} 10... e6 {[%clk 0:02:57.1]} 11.
O-O {[%clk 0:02:38.7]} 11... Be7 {[%clk 0:02:49.2]} 12. Bh6 {[%clk 0:02:37.9]}
12... Nd7 {[%clk 0:02:40.9]} 13. Qe3 {[%clk 0:02:27.6]} 13... Qa5 {[%clk
0:02:30.9]} 14. f4 {[%clk 0:02:18.3]} 14... O-O-O {[%clk 0:02:29.6]} 15. g4
{[%clk 0:02:18.1]} 15... Nb6 {[%clk 0:02:16.6]} 16. f5 {[%clk 0:02:09.3]} 16...
gxf5 {[%clk 0:02:15.6]} 17. gxf5 {[%clk 0:02:09.4]} 17... Na4 {[%clk 0:02:11.9]}
18. fxe6 {[%clk 0:02:05]} 18... fxe6 {[%clk 0:02:11.5]} 19. Bg4 {[%clk
0:02:03.3]} 19... Rhg8 {[%clk 0:02:04.6]} 20. Rf7 {[%clk 0:01:48.8]} 20... Rd7
{[%clk 0:01:42.5]} 21. Raf1 {[%clk 0:01:24.9]} 21... Qxc3 {[%clk 0:01:37.9]} 22.
Qxc3 {[%clk 0:01:18.1]} 22... Nxc3 {[%clk 0:01:38.8]} 23. Bg7 {[%clk 0:01:18.7]}
23... Kd8 {[%clk 0:01:16.6]} 24. Bxe6 {[%clk 0:01:13.9]} 24... Rc7 {[%clk
0:01:12.5]} 25. Kh2 {[%clk 0:01:05.8]} 25... Rc6 {[%clk 0:01:04.4]} 26. Rxe7
{[%clk 0:01:00]} 26... Rxg7 {[%clk 0:00:58.4]} 27. Rxg7 {[%clk 0:00:58.5]} 27...
Rxe6 {[%clk 0:00:57.6]} 28. Rf8+ {[%clk 0:00:58.6]} 28... Re8 {[%clk 0:00:57.8]}
29. Rxe8+ {[%clk 0:00:58.7]} 29... Kxe8 {[%clk 0:00:58.7]} 30. Rxb7 {[%clk
0:00:58.5]} 30... Ne2 {[%clk 0:00:55.7]} 31. Rb5 {[%clk 0:00:41.8]} 31... Nxd4
{[%clk 0:00:54.4]} 32. Rxd5 {[%clk 0:00:41.8]} 32... Nxc2 {[%clk 0:00:54.8]} 33.
Ra5 {[%clk 0:00:33]} 33... Nd4 {[%clk 0:00:51]} 34. Rc5 {[%clk 0:00:26.4]} 34...
Ke7 {[%clk 0:00:42.9]} 35. Rxc4 {[%clk 0:00:25.2]} 35... Nf3+ {[%clk 0:00:42.6]}
36. Kg3 {[%clk 0:00:25.3]} 36... Nxe5 {[%clk 0:00:43.3]} 37. Rc7+ {[%clk
0:00:22.7]} 1-0

[Event "*** Titled Tuesday Blitz"]
[Site "Chess.com"]
[Date "2021.02.09"]
[Round "2"]
[White "Ghost_Pepper"]
[Black "Joseacorrea"]
[Result "1-0"]
[WhiteElo "2369"]
[BlackElo "2000"]
[TimeControl "180+1"]
[EndTime "10:17:35 PST"]
[Termination "Ghost_Pepper won on time"]

1. e4 {[%clk 0:03:00.9]} 1... c5 {[%clk 0:02:59.5]} 2. Nf3 {[%clk 0:02:54.9]}
2... g6 {[%clk 0:02:58.8]} 3. g3 {[%clk 0:02:49.2]} 3... Bg7 {[%clk 0:02:58.3]}
4. Bg2 {[%clk 0:02:50.1]} 4... Nc6 {[%clk 0:02:58.7]} 5. O-O {[%clk 0:02:50.6]}
5... d6 {[%clk 0:02:55.9]} 6. d3 {[%clk 0:02:50.9]} 6... Nf6 {[%clk 0:02:56.4]}
7. Re1 {[%clk 0:02:51.1]} 7... O-O {[%clk 0:02:56.3]} 8. c3 {[%clk 0:02:51.6]}
8... Bg4 {[%clk 0:02:55.6]} 9. Nbd2 {[%clk 0:02:51.9]} 9... Qd7 {[%clk 0:02:55]}
10. Nf1 {[%clk 0:02:52.5]} 10... Ne5 {[%clk 0:02:50.3]} 11. Ne3 {[%clk
0:02:42.9]} 11... Bxf3 {[%clk 0:02:44.5]} 12. Bxf3 {[%clk 0:02:41.9]} 12...
Nxf3+ {[%clk 0:02:44.5]} 13. Qxf3 {[%clk 0:02:42.5]} 13... Qh3 {[%clk
0:02:35.6]} 14. Qg2 {[%clk 0:02:40.1]} 14... Qxg2+ {[%clk 0:02:31.9]} 15. Kxg2
{[%clk 0:02:41]} 15... b5 {[%clk 0:02:30.8]} 16. Nd5 {[%clk 0:02:39.9]} 16...
Nxd5 {[%clk 0:02:22.1]} 17. exd5 {[%clk 0:02:40.8]} 17... Bf6 {[%clk 0:02:22.6]}
18. Re4 {[%clk 0:02:37.5]} 18... Rfe8 {[%clk 0:02:15.4]} 19. a4 {[%clk
0:02:36.5]} 19... a6 {[%clk 0:02:13.6]} 20. h4 {[%clk 0:02:26.3]} 20... e6
{[%clk 0:01:58.2]} 21. dxe6 {[%clk 0:02:23.5]} 21... Rxe6 {[%clk 0:01:59.1]} 22.
Rxe6 {[%clk 0:02:23.3]} 22... fxe6 {[%clk 0:02:00]} 23. axb5 {[%clk 0:02:23.4]}
23... a5 {[%clk 0:01:56.9]} 24. c4 {[%clk 0:02:19.1]} 24... Kf7 {[%clk 0:01:52]}
25. Ra2 {[%clk 0:02:19.4]} 25... Ke7 {[%clk 0:01:43.4]} 26. b3 {[%clk
0:02:19.2]} 26... Bc3 {[%clk 0:01:35.3]} 27. Kf3 {[%clk 0:02:19.3]} 27... d5
{[%clk 0:01:27.9]} 28. Kg4 {[%clk 0:02:11.2]} 28... Rf8 {[%clk 0:01:22]} 29.
Bg5+ {[%clk 0:02:08.5]} 29... Kd7 {[%clk 0:01:20.5]} 30. h5 {[%clk 0:02:08.9]}
30... e5 {[%clk 0:01:07.1]} 31. f4 {[%clk 0:01:53.2]} 31... e4 {[%clk
0:00:58.8]} 32. dxe4 {[%clk 0:01:52.1]} 32... dxe4 {[%clk 0:00:42]} 33. Re2
{[%clk 0:01:47.9]} 33... Re8 {[%clk 0:00:38.2]} 34. hxg6 {[%clk 0:01:46.6]}
34... hxg6 {[%clk 0:00:37.1]} 35. f5 {[%clk 0:01:47]} 35... gxf5+ {[%clk
0:00:29.6]} 36. Kxf5 {[%clk 0:01:47.9]} 36... e3 {[%clk 0:00:24.8]} 37. Rxe3
{[%clk 0:01:46.2]} 37... Rf8+ {[%clk 0:00:12.7]} 38. Ke4 {[%clk 0:01:43]} 38...
Bd4 {[%clk 0:00:11.9]} 39. Rf3 {[%clk 0:01:42.2]} 39... Re8+ {[%clk 0:00:12.1]}
40. Kf5 {[%clk 0:01:39]} 40... Re1 {[%clk 0:00:11.3]} 41. Bf4 {[%clk 0:01:38]}
41... Rb1 {[%clk 0:00:11.3]} 42. g4 {[%clk 0:01:37.8]} 42... Ra1 {[%clk
0:00:06.7]} 43. Rh3 {[%clk 0:01:37.4]} 43... Ra3 {[%clk 0:00:06]} 44. g5 {[%clk
0:01:34.8]} 44... a4 {[%clk 0:00:06]} 45. Rh7+ {[%clk 0:01:34.6]} 45... Ke8
{[%clk 0:00:04.2]} 46. bxa4 {[%clk 0:01:32.1]} 46... Rxa4 {[%clk 0:00:04.8]} 47.
b6 {[%clk 0:01:32.2]} 47... Rxc4 {[%clk 0:00:04.5]} 48. b7 {[%clk 0:01:32.3]}
48... Rb4 {[%clk 0:00:01.9]} 49. b8=Q+ {[%clk 0:01:32.7]} 49... Rxb8 {[%clk
0:00:01.4]} 50. Bxb8 {[%clk 0:01:33.6]} 1-0

[Event "*** Titled Tuesday Blitz"]
[Site "Chess.com"]
[Date "2021.02.09"]
[Round "2"]
[White "Reader777"]
[Black "noblerone"]
[Result "1-0"]
[WhiteElo "2802"]
[BlackElo "2416"]
[TimeControl "180+1"]
[EndTime "10:17:37 PST"]
[Termination "Reader777 won by resignation"]

1. d4 {[%clk 0:03:00.9]} 1... d5 {[%clk 0:02:59.4]} 2. c4 {[%clk 0:03:01.1]}
2... c6 {[%clk 0:02:59.7]} 3. Nf3 {[%clk 0:03:01]} 3... Nf6 {[%clk 0:03:00.1]}
4. g3 {[%clk 0:03:01.1]} 4... Bg4 {[%clk 0:02:59.4]} 5. Bg2 {[%clk 0:03:00.9]}
5... e6 {[%clk 0:02:59.2]} 6. O-O {[%clk 0:03:00.8]} 6... Nbd7 {[%clk
0:02:58.8]} 7. Nc3 {[%clk 0:03:00]} 7... Be7 {[%clk 0:02:53]} 8. Nd2 {[%clk
0:02:59.5]} 8... O-O {[%clk 0:02:49.2]} 9. Qc2 {[%clk 0:02:59.4]} 9... Bh5
{[%clk 0:02:44.2]} 10. e4 {[%clk 0:02:58.7]} 10... dxe4 {[%clk 0:02:42.5]} 11.
Ndxe4 {[%clk 0:02:59.1]} 11... Nxe4 {[%clk 0:02:42.2]} 12. Nxe4 {[%clk
0:02:59.2]} 12... Nf6 {[%clk 0:02:41.1]} 13. Be3 {[%clk 0:02:46.3]} 13... Bg6
{[%clk 0:02:35.1]} 14. Nxf6+ {[%clk 0:02:45.9]} 14... Bxf6 {[%clk 0:02:35.7]}
15. Qb3 {[%clk 0:02:45.5]} 15... Qc7 {[%clk 0:01:53.5]} 16. Rac1 {[%clk
0:02:40.9]} 16... Rfd8 {[%clk 0:01:42.9]} 17. Rfd1 {[%clk 0:02:35.8]} 17... h6
{[%clk 0:01:31.5]} 18. d5 {[%clk 0:02:32.2]} 18... exd5 {[%clk 0:01:23.3]} 19.
cxd5 {[%clk 0:02:31.5]} 19... Rdb8 {[%clk 0:00:53.5]} 20. Bf4 {[%clk 0:02:24.2]}
20... Be5 {[%clk 0:00:52.7]} 21. d6 {[%clk 0:02:03.9]} 21... Qa5 {[%clk
0:00:52.3]} 22. Bxe5 {[%clk 0:01:59.8]} 22... Qxe5 {[%clk 0:00:53.2]} 23. d7
{[%clk 0:01:56.9]} 23... Qc7 {[%clk 0:00:50.8]} 24. Qb4 {[%clk 0:01:52.4]} 24...
Rd8 {[%clk 0:00:46.6]} 25. Bh3 {[%clk 0:01:51.5]} 25... Rab8 {[%clk 0:00:43.3]}
26. Qd4 {[%clk 0:01:43.7]} 26... Qa5 {[%clk 0:00:39]} 27. a3 {[%clk 0:01:40.9]}
27... a6 {[%clk 0:00:31.4]} 28. Rc5 {[%clk 0:01:38.5]} 28... Qb6 {[%clk
0:00:28.3]} 29. Qc3 {[%clk 0:01:36.9]} 29... Qc7 {[%clk 0:00:26.3]} 30. Re5
{[%clk 0:01:33.5]} 30... Rf8 {[%clk 0:00:20.7]} 31. Rde1 {[%clk 0:01:26.9]}
31... Qd6 {[%clk 0:00:15.9]} 32. Re8 {[%clk 0:01:24]} 32... f6 {[%clk
0:00:16.2]} 33. Rxb8 {[%clk 0:01:12.3]} 33... Rxb8 {[%clk 0:00:10.1]} 34. Qb3+
{[%clk 0:01:09.3]} 34... Kh7 {[%clk 0:00:09.8]} 35. Rd1 {[%clk 0:01:05.2]} 35...
Qe7 {[%clk 0:00:09]} 36. Qb6 {[%clk 0:01:01]} 36... Bf7 {[%clk 0:00:07.2]} 37.
d8=Q {[%clk 0:00:59.4]} 1-0

[Event "*** Titled Tuesday Blitz"]
[Site "Chess.com"]
[Date "2021.02.09"]
[Round "2"]
[White "DvaHrasta"]
[Black "mr65"]
[Result "1-0"]
[WhiteElo "2394"]
[BlackElo "2102"]
[TimeControl "180+1"]
[EndTime "10:17:37 PST"]
[Termination "DvaHrasta won by resignation"]

1. c4 {[%clk 0:03:00.9]} 1... Nf6 {[%clk 0:02:58.7]} 2. g3 {[%clk 0:03:00.5]}
2... g6 {[%clk 0:02:57.9]} 3. Bg2 {[%clk 0:03:00.4]} 3... Bg7 {[%clk 0:02:57.9]}
4. Nf3 {[%clk 0:03:00.3]} 4... O-O {[%clk 0:02:57.4]} 5. O-O {[%clk 0:03:00.3]}
5... d6 {[%clk 0:02:56.3]} 6. Nc3 {[%clk 0:02:59.7]} 6... Nc6 {[%clk 0:02:52.3]}
7. d3 {[%clk 0:02:59]} 7... e5 {[%clk 0:02:49.4]} 8. Rb1 {[%clk 0:02:59]} 8...
a5 {[%clk 0:02:47.6]} 9. a3 {[%clk 0:02:58.6]} 9... Be6 {[%clk 0:02:39.3]} 10.
h3 {[%clk 0:02:54.9]} 10... Qd7 {[%clk 0:02:35.6]} 11. Kh2 {[%clk 0:02:52.7]}
11... Nh5 {[%clk 0:02:34.4]} 12. e4 {[%clk 0:02:51.4]} 12... Kh8 {[%clk
0:02:27.1]} 13. b4 {[%clk 0:02:50.6]} 13... axb4 {[%clk 0:02:25.7]} 14. axb4
{[%clk 0:02:50.2]} 14... f5 {[%clk 0:02:20.7]} 15. b5 {[%clk 0:02:46.7]} 15...
Nd4 {[%clk 0:02:09.3]} 16. Nxd4 {[%clk 0:02:45.2]} 16... exd4 {[%clk 0:02:08.5]}
17. exf5 {[%clk 0:02:29.7]} 17... gxf5 {[%clk 0:01:48.5]} 18. Nd5 {[%clk
0:02:19.5]} 18... Nf6 {[%clk 0:01:38.1]} 19. Nxf6 {[%clk 0:02:17.2]} 19... Rxf6
{[%clk 0:01:35.8]} 20. Bxb7 {[%clk 0:02:14.7]} 20... Rg8 {[%clk 0:01:33.4]} 21.
Bc6 {[%clk 0:02:10.6]} 21... Qf7 {[%clk 0:01:28.8]} 22. Bf4 {[%clk 0:02:09.2]}
22... Bh6 {[%clk 0:01:24.2]} 23. Qf3 {[%clk 0:01:51.1]} 23... Bxf4 {[%clk
0:01:19]} 24. Qxf4 {[%clk 0:01:51.2]} 24... d5 {[%clk 0:01:01.8]} 25. c5 {[%clk
0:01:44.7]} 25... Bd7 {[%clk 0:00:49.9]} 26. Bxd7 {[%clk 0:01:37.2]} 26... Qxd7
{[%clk 0:00:47.8]} 27. b6 {[%clk 0:01:36.5]} 27... cxb6 {[%clk 0:00:43.7]} 28.
Qxd4 {[%clk 0:01:36]} 28... Qg7 {[%clk 0:00:39.1]} 29. Rxb6 {[%clk 0:01:31.7]}
29... Rgf8 {[%clk 0:00:30.9]} 30. Rxf6 {[%clk 0:01:29.7]} 30... Qxf6 {[%clk
0:00:28.3]} 31. Qxf6+ {[%clk 0:01:28.3]} 31... Rxf6 {[%clk 0:00:27.6]} 32. Rc1
{[%clk 0:01:27.8]} 32... Rc6 {[%clk 0:00:19.4]} 33. Kg2 {[%clk 0:01:27.8]} 33...
f4 {[%clk 0:00:18]} 34. gxf4 {[%clk 0:01:25.6]} 34... Kg7 {[%clk 0:00:16.9]} 35.
Kf3 {[%clk 0:01:25.7]} 35... Kf6 {[%clk 0:00:16.7]} 36. Ke3 {[%clk 0:01:25.9]}
36... Ke6 {[%clk 0:00:09.7]} 37. Kd4 {[%clk 0:01:24.8]} 37... Rc8 {[%clk
0:00:08.9]} 38. c6 {[%clk 0:01:23.6]} 38... Rc7 {[%clk 0:00:03.4]} 39. Rc5
{[%clk 0:01:16.1]} 39... Kd6 {[%clk 0:00:02.8]} 40. Rxd5+ {[%clk 0:01:15.6]}
40... Kxc6 {[%clk 0:00:03]} 41. Rc5+ {[%clk 0:01:15.6]} 41... Kd6 {[%clk
0:00:03.2]} 42. Rxc7 {[%clk 0:01:15.4]} 42... Kxc7 {[%clk 0:00:03.5]} 43. Ke5
{[%clk 0:01:15.6]} 43... Kd7 {[%clk 0:00:03.5]} 44. d4 {[%clk 0:01:15.6]} 1-0

[Event "*** Titled Tuesday Blitz"]
[Site "Chess.com"]
[Date "2021.02.09"]
[Round "2"]
[White "Nils_03"]
[Black "TigranMukhutdinov"]
[Result "0-1"]
[WhiteElo "2328"]
[BlackElo "2606"]
[TimeControl "180+1"]
[EndTime "10:17:38 PST"]
[Termination "TigranMukhutdinov won by resignation"]

1. e4 {[%clk 0:03:00.9]} 1... c5 {[%clk 0:02:58.7]} 2. f4 {[%clk 0:03:01.2]}
2... Nc6 {[%clk 0:02:58.2]} 3. Nf3 {[%clk 0:03:00.7]} 3... d6 {[%clk 0:02:56.5]}
4. Bb5 {[%clk 0:03:00.1]} 4... Bd7 {[%clk 0:02:55.8]} 5. d3 {[%clk 0:02:59.8]}
5... g6 {[%clk 0:02:55.8]} 6. O-O {[%clk 0:02:59.2]} 6... Bg7 {[%clk 0:02:56.4]}
7. Nc3 {[%clk 0:02:54]} 7... Nd4 {[%clk 0:02:55.3]} 8. Bxd7+ {[%clk 0:02:53.4]}
8... Qxd7 {[%clk 0:02:56.2]} 9. Nxd4 {[%clk 0:02:51.1]} 9... Bxd4+ {[%clk
0:02:54.8]} 10. Kh1 {[%clk 0:02:51.1]} 10... f5 {[%clk 0:02:43]} 11. exf5 {[%clk
0:02:45.8]} 11... Qxf5 {[%clk 0:02:42.5]} 12. Qf3 {[%clk 0:02:41.1]} 12... O-O-O
{[%clk 0:02:36.6]} 13. Nb5 {[%clk 0:02:34.5]} 13... a6 {[%clk 0:02:27.4]} 14.
Nxd4 {[%clk 0:02:33.9]} 14... cxd4 {[%clk 0:02:28.3]} 15. Bd2 {[%clk 0:02:24.7]}
15... Nf6 {[%clk 0:02:27.9]} 16. Rfe1 {[%clk 0:02:09.3]} 16... Rd7 {[%clk
0:02:28]} 17. c3 {[%clk 0:02:00.6]} 17... dxc3 {[%clk 0:02:24.1]} 18. Rac1
{[%clk 0:01:56.1]} 18... Kb8 {[%clk 0:02:21.7]} 19. Rxc3 {[%clk 0:01:53]} 19...
Qd5 {[%clk 0:02:18.7]} 20. Qh3 {[%clk 0:01:39.3]} 20... Qf5 {[%clk 0:02:09.1]}
21. Qf3 {[%clk 0:01:35.3]} 21... Rc8 {[%clk 0:02:07]} 22. Rxc8+ {[%clk
0:01:32.8]} 22... Kxc8 {[%clk 0:02:07.9]} 23. Rc1+ {[%clk 0:01:28.4]} 23... Rc7
{[%clk 0:02:08.3]} 24. Re1 {[%clk 0:01:13.8]} 24... Kb8 {[%clk 0:02:00.4]} 25.
Bc3 {[%clk 0:01:11.4]} 25... Nd5 {[%clk 0:01:58.9]} 26. Bd4 {[%clk 0:01:01.5]}
26... Rc2 {[%clk 0:01:50.2]} 27. Qe4 {[%clk 0:00:54.1]} 27... Qxe4 {[%clk
0:01:46.6]} 28. dxe4 {[%clk 0:00:55]} 28... Nxf4 {[%clk 0:01:46]} 29. e5 {[%clk
0:00:51.8]} 29... Nd3 {[%clk 0:01:42.3]} 30. Rd1 {[%clk 0:00:39.8]} 30... dxe5
{[%clk 0:01:37.1]} 31. Be3 {[%clk 0:00:23.8]} 31... e4 {[%clk 0:01:36.5]} 32. h4
{[%clk 0:00:22.4]} 32... Rxb2 {[%clk 0:01:33.8]} 33. a4 {[%clk 0:00:20.2]} 33...
Ra2 {[%clk 0:01:32.4]} 34. Rf1 {[%clk 0:00:17]} 34... Rxa4 {[%clk 0:01:32.4]}
35. Rf8+ {[%clk 0:00:17]} 35... Kc7 {[%clk 0:01:31.9]} 36. Rf7 {[%clk
0:00:17.9]} 36... Kd7 {[%clk 0:01:32]} 37. Rxh7 {[%clk 0:00:17.8]} 37... Ra1+
{[%clk 0:01:32.3]} 38. Kh2 {[%clk 0:00:17.7]} 38... Kd6 {[%clk 0:01:27.3]} 39.
Rg7 {[%clk 0:00:17]} 39... Ne5 {[%clk 0:01:26]} 40. Bd4 {[%clk 0:00:14.7]} 40...
Rd1 {[%clk 0:01:21]} 41. Bxe5+ {[%clk 0:00:14.1]} 41... Kxe5 {[%clk 0:01:21.9]}
42. Rxg6 {[%clk 0:00:14.9]} 42... e3 {[%clk 0:01:21.5]} 43. Rg3 {[%clk
0:00:14.9]} 43... Ke4 {[%clk 0:01:21.3]} 44. Rxe3+ {[%clk 0:00:09]} 44... Kxe3
{[%clk 0:01:21.3]} 45. h5 {[%clk 0:00:09]} 45... Kf4 {[%clk 0:01:20.9]} 46. h6
{[%clk 0:00:09.4]} 46... Kg5 {[%clk 0:01:21.2]} 47. h7 {[%clk 0:00:10.3]} 47...
Rd8 {[%clk 0:01:21.4]} 48. g4 {[%clk 0:00:08.7]} 48... Rh8 {[%clk 0:01:21.4]}
49. Kg3 {[%clk 0:00:09.6]} 49... Rxh7 {[%clk 0:01:22.3]} 0-1

[Event "*** Titled Tuesday Blitz"]
[Site "Chess.com"]
[Date "2021.02.09"]
[Round "2"]
[White "Keranke"]
[Black "Srisshhhtea"]
[Result "1-0"]
[WhiteElo "2816"]
[BlackElo "2506"]
[TimeControl "180+1"]
[EndTime "10:17:40 PST"]
[Termination "Keranke won by checkmate"]

1. d4 {[%clk 0:03:00.9]} 1... d5 {[%clk 0:02:57.9]} 2. Bf4 {[%clk 0:03:00.8]}
2... Nf6 {[%clk 0:02:53.1]} 3. e3 {[%clk 0:03:01.2]} 3... e6 {[%clk 0:02:49.9]}
4. Nf3 {[%clk 0:03:00.4]} 4... Bd6 {[%clk 0:02:48.1]} 5. Ne5 {[%clk 0:03:00.6]}
5... Nbd7 {[%clk 0:02:44.6]} 6. Bd3 {[%clk 0:02:59.5]} 6... O-O {[%clk
0:02:40.5]} 7. Nd2 {[%clk 0:02:58.3]} 7... Qe7 {[%clk 0:02:37.8]} 8. g4 {[%clk
0:02:47.3]} 8... c5 {[%clk 0:02:26.9]} 9. g5 {[%clk 0:02:45.4]} 9... Ne8 {[%clk
0:02:22.6]} 10. Qh5 {[%clk 0:02:42]} 10... g6 {[%clk 0:02:21.7]} 11. Qf3 {[%clk
0:02:29.7]} 11... c4 {[%clk 0:02:18.6]} 12. Be2 {[%clk 0:02:28.5]} 12... f6
{[%clk 0:02:06.8]} 13. gxf6 {[%clk 0:02:21.5]} 13... Nexf6 {[%clk 0:02:02]} 14.
Qg3 {[%clk 0:02:20]} 14... Bxe5 {[%clk 0:01:48.7]} 15. dxe5 {[%clk 0:02:20.9]}
15... Ne8 {[%clk 0:01:48.3]} 16. h4 {[%clk 0:02:16.3]} 16... Ng7 {[%clk
0:01:32.6]} 17. h5 {[%clk 0:02:14.1]} 17... Nf5 {[%clk 0:01:32.6]} 18. Qg2
{[%clk 0:02:03.5]} 18... Qg7 {[%clk 0:01:30.6]} 19. hxg6 {[%clk 0:02:00.7]}
19... hxg6 {[%clk 0:01:24.8]} 20. Nf3 {[%clk 0:01:58.5]} 20... Nc5 {[%clk
0:01:22.1]} 21. Ng5 {[%clk 0:01:52.9]} 21... Bd7 {[%clk 0:00:50.8]} 22. O-O-O
{[%clk 0:01:48.6]} 22... c3 {[%clk 0:00:48.4]} 23. Rh7 {[%clk 0:01:41.7]} 23...
cxb2+ {[%clk 0:00:47.5]} 24. Kxb2 {[%clk 0:01:41.1]} 24... Qxh7 {[%clk
0:00:37.7]} 25. Nxh7 {[%clk 0:01:40.9]} 25... Kxh7 {[%clk 0:00:38.6]} 26. Bg4
{[%clk 0:01:33.5]} 26... Kg7 {[%clk 0:00:35.1]} 27. Bxf5 {[%clk 0:01:28.4]}
27... Rxf5 {[%clk 0:00:36]} 28. Rh1 {[%clk 0:01:26.1]} 28... Rg8 {[%clk
0:00:28.1]} 29. Qh3 {[%clk 0:01:20.6]} 29... Kf7 {[%clk 0:00:26.9]} 30. Qh7+
{[%clk 0:01:20.6]} 30... Rg7 {[%clk 0:00:27.1]} 31. Qh8 {[%clk 0:01:21.1]} 31...
g5 {[%clk 0:00:21.7]} 32. Rh7 {[%clk 0:01:11.7]} 32... Rxh7 {[%clk 0:00:20.8]}
33. Qxh7+ {[%clk 0:01:12.6]} 33... Ke8 {[%clk 0:00:20.5]} 34. Qg8+ {[%clk
0:01:10.3]} 34... Rf8 {[%clk 0:00:17.9]} 35. Qxg5 {[%clk 0:01:09.6]} 35... Ne4
{[%clk 0:00:18.1]} 36. Qh4 {[%clk 0:01:07.9]} 36... Bc6 {[%clk 0:00:16.5]} 37.
f3 {[%clk 0:01:08.2]} 37... Nc5 {[%clk 0:00:15.9]} 38. Bg5 {[%clk 0:01:07.4]}
38... Kd7 {[%clk 0:00:15.7]} 39. Qh7+ {[%clk 0:01:06.1]} 39... Kc8 {[%clk
0:00:14.5]} 40. Be7 {[%clk 0:01:06.5]} 40... Na4+ {[%clk 0:00:14]} 41. Kc1
{[%clk 0:01:06.5]} 41... Rxf3 {[%clk 0:00:13.3]} 42. Bd6 {[%clk 0:01:07.1]}
42... Rf1+ {[%clk 0:00:12.8]} 43. Kd2 {[%clk 0:01:07.3]} 43... Kd8 {[%clk
0:00:13.3]} 44. Qe7+ {[%clk 0:01:06.6]} 44... Kc8 {[%clk 0:00:13.4]} 45. Qc7#
{[%clk 0:01:07.5]} 1-0

[Event "*** Titled Tuesday Blitz"]
[Site "Chess.com"]
[Date "2021.02.09"]
[Round "2"]
[White "louis198"]
[Black "mishanick"]
[Result "0-1"]
[WhiteElo "2559"]
[BlackElo "2938"]
[TimeControl "180+1"]
[EndTime "10:17:41 PST"]
[Termination "mishanick won by resignation"]

1. d4 {[%clk 0:03:00.9]} 1... Nf6 {[%clk 0:02:59.2]} 2. c4 {[%clk 0:03:00.7]}
2... e6 {[%clk 0:02:59]} 3. Nc3 {[%clk 0:02:59]} 3... Bb4 {[%clk 0:02:58.6]} 4.
Qb3 {[%clk 0:02:58.8]} 4... c5 {[%clk 0:02:57.5]} 5. e3 {[%clk 0:02:58.6]} 5...
O-O {[%clk 0:02:56.1]} 6. Bd3 {[%clk 0:02:57.9]} 6... Nc6 {[%clk 0:02:56.3]} 7.
Ne2 {[%clk 0:02:55]} 7... cxd4 {[%clk 0:02:52.6]} 8. exd4 {[%clk 0:02:54.8]}
8... d5 {[%clk 0:02:53.2]} 9. c5 {[%clk 0:02:54.7]} 9... b6 {[%clk 0:02:51.8]}
10. cxb6 {[%clk 0:02:54.1]} 10... axb6 {[%clk 0:02:51.1]} 11. O-O {[%clk
0:02:53.9]} 11... Bd6 {[%clk 0:02:50.2]} 12. h3 {[%clk 0:02:51.1]} 12... Bd7
{[%clk 0:02:50.3]} 13. Nb5 {[%clk 0:02:49.7]} 13... Na5 {[%clk 0:02:46]} 14. Qd1
{[%clk 0:02:47.2]} 14... Bb8 {[%clk 0:02:43.7]} 15. b3 {[%clk 0:02:43.9]} 15...
Ne4 {[%clk 0:02:43.4]} 16. Ba3 {[%clk 0:02:35.9]} 16... Re8 {[%clk 0:02:41.3]}
17. Rc1 {[%clk 0:02:23]} 17... Qf6 {[%clk 0:02:36.8]} 18. Bxe4 {[%clk
0:02:14.6]} 18... Bxb5 {[%clk 0:02:24]} 19. Bd3 {[%clk 0:02:04.7]} 19... Bd7
{[%clk 0:02:08.6]} 20. Bb4 {[%clk 0:01:59.3]} 20... Nc6 {[%clk 0:02:08.6]} 21.
Qd2 {[%clk 0:01:44.6]} 21... Nxb4 {[%clk 0:02:01.5]} 22. Qxb4 {[%clk 0:01:43.2]}
22... Rxa2 {[%clk 0:01:58.3]} 23. Qxb6 {[%clk 0:01:33.9]} 23... h5 {[%clk
0:01:58.1]} 24. Qb7 {[%clk 0:01:22.5]} 24... Ra7 {[%clk 0:01:56.9]} 25. Qb4
{[%clk 0:01:17.6]} 25... h4 {[%clk 0:01:57.2]} 26. Bb1 {[%clk 0:01:04.3]} 26...
e5 {[%clk 0:01:49.6]} 27. Rc3 {[%clk 0:00:43.2]} 27... exd4 {[%clk 0:01:26.9]}
28. Rf3 {[%clk 0:00:41.4]} 28... Qe5 {[%clk 0:01:22.7]} 29. Re1 {[%clk
0:00:24.3]} 29... Bd6 {[%clk 0:01:01.6]} 30. Qd2 {[%clk 0:00:23.3]} 30... Qh2+
{[%clk 0:00:51.6]} 31. Kf1 {[%clk 0:00:23.3]} 31... Bb5 {[%clk 0:00:49.7]} 32.
Bd3 {[%clk 0:00:20.7]} 32... Rae7 {[%clk 0:00:48.8]} 33. Bxb5 {[%clk 0:00:20]}
33... Qh1+ {[%clk 0:00:48.9]} 34. Ng1 {[%clk 0:00:20]} 34... Rxe1+ {[%clk
0:00:49.8]} 35. Qxe1 {[%clk 0:00:20.3]} 35... Rxe1+ {[%clk 0:00:50.5]} 36. Kxe1
{[%clk 0:00:21.2]} 36... Qxg1+ {[%clk 0:00:51.1]} 37. Bf1 {[%clk 0:00:20.5]}
37... Bc5 {[%clk 0:00:47.2]} 38. Rd3 {[%clk 0:00:20.3]} 38... Qh2 {[%clk
0:00:45.9]} 39. Ke2 {[%clk 0:00:20.2]} 39... Qf4 {[%clk 0:00:46.4]} 0-1